Cogmind - Beta 16.1 @@@ ROGUE MODE // 2026.02.20 @ 23:41:34 Player: APerTAS Result: Destroyed by S-27 Virus with Autogun Performance ------------- Evolutions (3) 1500 Regions Visited (8) 1600 Robots Destroyed (12) 60 Value Destroyed (273) 273 Prototype IDs (0) 0 Alien Tech Used (0) 0 Bonus (284) 284 TOTAL SCORE: 3717 Bonus ------- Pacifist 834 Met Imprinter 300 Was Imprinted 300 Friendly Fire -1150 Cogmind --------- Core Integrity 0/700 Matter 300/300 Energy 99/100 System Corruption 0% Temperature Cool (0) Movement Core (50) Location -6/Proximity Caves Parts ------- > --- POWER (7) -------- (None) > --- PROPULSION (2) --- (None) > --- UTILITY (2) ------ (None) > --- WEAPON (2) ------- (None) > --- INVENTORY (5) ---- Reinforced Deuterium Engine Micro Fission Core Armored Wheel Thermal Generator Hacking Suite Peak State ------------ > --- POWER ------------ (None) > --- PROPULSION ------- Backup Propulsion III > --- UTILITY ---------- Core Analyzer Makeshift Hacking Suite > --- WEAPON ----------- Heavy Mace > --- INVENTORY -------- Reinforced Deuterium Engine Micro Fission Core Armored Wheel Thermal Generator Hacking Suite [Rating: 15] Favorites ----------- Power None Propulsion Backup Propulsion III Hover Unit Backup Propulsion III Utility Makeshift Hacking Suite Processor Core Analyzer Hackware Makeshift Hacking Suite Weapon Heavy Mace Impact Weapon Heavy Mace Build | -11 -10 -9 -8 -7 -7 -7 -7 -6 ------- Run | Yrd Mat Mat Mat Fac Low Low Zio Pro Slots Evolved 6 | . . 2 2 2 . . . . Power 6 | . . 2 2 2 . . . . Propulsion . | . . . . . . . . . Utility . | . . . . . . . . . Weapon . | . . . . . . . . . Parts Attached 5 | . . . . 2 2 1 . . Power . | . . . . . . . . . Engine . | . . . . . . . . . Core . | . . . . . . . . . Reactor . | . . . . . . . . . Propulsion . | . . . . . . . . . Treads . | . . . . . . . . . Leg . | . . . . . . . . . Wheel . | . . . . . . . . . Hover . | . . . . . . . . . Flight . | . . . . . . . . . Utility 4 | . . . . 2 1 1 . . Device . | . . . . . . . . . Storage . | . . . . . . . . . Processor 1 | . . . . . . 1 . . Hackware 3 | . . . . 2 1 . . . Protection . | . . . . . . . . . Artifact . | . . . . . . . . . Weapon 1 | . . . . . 1 . . . Energy Gun . | . . . . . . . . . Energy Cannon . | . . . . . . . . . Ballistic Gun . | . . . . . . . . . Ballistic Cannon . | . . . . . . . . . Launcher . | . . . . . . . . . Special Weapon . | . . . . . . . . . Impact Weapon 1 | . . . . . 1 . . . Slashing Weapon . | . . . . . . . . . Piercing Weapon . | . . . . . . . . . Special Melee Weapon . | . . . . . . . . . Unidentified Prototypes . | . . . . . . . . . Parts Lost 4 | . . . . . 1 . . 3 Power . | . . . . . . . . . Propulsion . | . . . . . . . . . Utility 3 | . . . . . 1 . . 2 Weapon 1 | . . . . . . . . 1 Highest Loss Streak 3 | . . . . . 1 . . 3 To Critical Strikes . | . . . . . . . . . Average Backups 3 | . . . . . 1 3 5 5 Power 1 | . . . . . . 1 2 2 Propulsion . | . . . . . . 1 1 1 Utility 1 | . . . . . 1 1 2 2 Weapon . | . . . . . . . . . Tool/Special . | . . . . . . . . . Unused Backups 5 | . . . . . . . . 5 Power 2 | . . . . . . . . 2 Propulsion 1 | . . . . . . . . 1 Utility 2 | . . . . . . . . 2 Weapon . | . . . . . . . . . Tool/Special . | . . . . . . . . . Average Slot Usage (%) 17 | . . . . 10 16 19 23 15 Processor 3 | . . . . . . 3 7 3 Hackware 7 | . . . . 10 11 7 7 5 Impact Weapon 5 | . . . . . 5 7 7 6 Peak Build Rating 15 | . . . . 6 10 12 15 12 Average Rating 9 | . . . . 4 7 9 12 8 On Entrance 4 | . . . . . 6 7 12 12 Avg Prop Armor Cover (%) . | . . . . . . . . . Naked Turns 159 | . 44 50 39 21 . . . 5 Heaviest Build 3 | . . . . . 3 3 3 3 Greatest Support 8 | 3 3 3 3 3 3 3 8 3 Greatest Overweight (x) . | . . . . . . . . . Average Overweight (x) . | . . . . . . . . . Largest Inventory Capacity 5 | 5 5 5 5 5 5 5 5 5 Average Capacity 5 | 5 5 5 5 5 5 5 5 5 Most Carried 5 | . . . . 1 3 5 5 5 Average Carried 3 | . . . . . 1 3 4 5 Final Capacity 5 | 5 5 5 5 5 5 5 5 5 Final Carried 5 | . . . . 1 3 5 5 5 Class Distribution -------------------- 87% | Mutant 12% | Hacker-Mutant Dominant Class ---------------- Mutant | -10/Materials Mutant | -9/Materials Mutant | -8/Materials Hacker-Mutant | -7/Factory Hacker-Mutant | -7/Lower Caves Mutant | -7/Lower Caves Mutant | -7/Zion Mutant | -6/Proximity Caves Resources | -11 -10 -9 -8 -7 -7 -7 -7 -6 ----------- Run | Yrd Mat Mat Mat Fac Low Low Zio Pro Matter Collected 263 | 198 . . . . 46 10 9 . Remotely . | . . . . . . . . . Salvage Created 651 | . . . . . 303 311 . 37 Parts 28 | . . . . . 12 14 . 2 Haulers Intercepted . | . . . . . . . . . Recyclers Shooed . | . . . . . . . . . Parts Field Recycled . | . . . . . . . . . Retrieved Matter . | . . . . . . . . . Parts Self-Destructed 5 | . . . . . 5 . . . Prevented 8 | . . . . . . 8 . . Parts Restored . | . . . . . . . . . Kills | -11 -10 -9 -8 -7 -7 -7 -7 -6 ------- Run | Yrd Mat Mat Mat Fac Low Low Zio Pro Combat Hostiles Destroyed 6 | . . . . . 3 1 . 2 Melee 2 | . . . . . 1 . . 1 Classes Destroyed 6 | . . . . . 3 2 . 1 Swarmer 2 | . . . . . . . . 2 Grunt 3 | . . . . . 3 . . . Behemoth 1 | . . . . . . 1 . . Ranger 2 | . . . . . . 2 . . Thug 1 | . . . . . 1 . . . Butcher 1 | . . . . . 1 . . . Mutant 2 | . . . . . 1 1 . . Best Kill Streak 2 | . . . . . 2 1 . 2 Combat Bots Only 3 | . . . . . 3 1 . 2 Max Kills in Single Turn 1 | . . . . . 1 1 . 1 Gunslinging . | . . . . . . . . . Exploded . | . . . . . . . . . Melee 1 | . . . . . 1 . . 1 Uniques/NPCs Destroyed . | . . . . . . . . . Combat | -11 -10 -9 -8 -7 -7 -7 -7 -6 -------- Run | Yrd Mat Mat Mat Fac Low Low Zio Pro Hostile Shots Fired 169 | . 14 28 10 34 20 5 . 58 Missed 68 | . 4 8 3 19 8 1 . 25 Hits 101 | . 10 20 7 15 12 4 . 33 Projectile 101 | . 10 20 7 15 12 4 . 33 Critical Strikes 3 | . . . 1 2 . . . . Damage Taken 1367 | 2 124 271 94 237 220 . . 419 Core 1203 | 2 124 271 94 232 200 . . 280 Absorbed by Shields . | . . . . . . . . . Core Remaining (%) 65 | 99 49 32 82 . . . . . Volleys Fired . | . . . . . . . . . Largest . | . . . . . . . . . Hottest . | . . . . . . . . . Shots Fired . | . . . . . . . . . Gun . | . . . . . . . . . Cannon . | . . . . . . . . . Launcher . | . . . . . . . . . Special . | . . . . . . . . . Kinetic . | . . . . . . . . . Thermal . | . . . . . . . . . Explosive . | . . . . . . . . . Electromagnetic . | . . . . . . . . . Robot Hit Streak . | . . . . . . . . . Robot Miss Streak . | . . . . . . . . . Penetration Max . | . . . . . . . . . Secondary Targets . | . . . . . . . . . Shots Hit Robots 23 | . . . . . 12 8 . 3 Core Hits 5 | . . . . . 3 1 . 1 Critical Kills 1 | . . . . . 1 . . . Critical Parts Destroyed 3 | . . . . . 1 1 . 1 Critical Strikes 4 | . . . . . 2 1 . 1 Smash 4 | . . . . . 2 1 . 1 Melee Attacks 36 | . . . . . 15 17 . 4 Impact 36 | . . . . . 15 17 . 4 Slashing . | . . . . . . . . . Piercing . | . . . . . . . . . Sneak Attacks 6 | . . . . . 3 3 . . Combat Hostiles . | . . . . . . . . . Follow-up Attacks . | . . . . . . . . . Damage Inflicted 1248 | 5 23 . . 11 612 485 . 112 Guns . | . . . . . . . . . Cannons . | . . . . . . . . . Explosions . | . . . . . . . . . Melee 1209 | . . . . . 612 485 . 112 Ramming 39 | 5 23 . . 11 . . . . Kinetic . | . . . . . . . . . Thermal . | . . . . . . . . . Explosive . | . . . . . . . . . Electromagnetic . | . . . . . . . . . Impact 1209 | . . . . . 612 485 . 112 Slashing . | . . . . . . . . . Piercing . | . . . . . . . . . Highest Corruption 3 | . . . . 3 3 3 3 . Average Corruption 2 | . . . . 2 3 3 3 . Corruption Purged . | . . . . . . . . . Corruption Blocked . | . . . . . . . . . Effects 9 | . . . . . 3 6 . . Message Errors 2 | . . . . . . 2 . . Matter Fused 2 | . . . . . 1 1 . . Heat Flow Errors 1 | . . . . . . 1 . . Energy Discharges 1 | . . . . . 1 . . . Data Loss (minor) 1 | . . . . . . 1 . . Data Loss (major) 1 | . . . . . 1 . . . Alerts 1 | . . . . . . 1 . . Overload Shots . | . . . . . . . . . Overflow Damage 321 | . . . . 1 82 200 . 38 Projectiles . | . . . . . . . . . Explosions . | . . . . . . . . . Melee 321 | . . . . 1 82 200 . 38 Knockbacks 5 | . . . . . 3 1 . 1 Impact 5 | . . . . . 3 1 . 1 Kinetic . | . . . . . . . . . Secondary . | . . . . . . . . . Self-Inflicted Damage 18 | 2 11 . . 5 . . . . Shots . | . . . . . . . . . Rammed 6 | 1 4 . . 1 . . . . Targets Rammed 6 | 1 4 . . 1 . . . . Kicked . | . . . . . . . . . Crushed . | . . . . . . . . . Highest Temperature 191 | . . . . . . 191 . . Average Temperature 107 | . . . . . . 107 . . Received Heat Transfer 351 | . 60 117 54 . 108 . . 12 Siege Activations . | . . . . . . . . . Martial Activations . | . . . . . . . . . Shielding Activations . | . . . . . . . . . Robots Disrupted . | . . . . . . . . . Combat Hostiles . | . . . . . . . . . Robots Corrupted 7 | . . . . . 3 3 . 1 Combat Hostiles 4 | . . . . . 2 1 . 1 Parts Fried 4 | . . . . . 1 3 . . Impact Corruptions 14 | . . . . 1 5 6 . 2 Robots Melted . | . . . . . . . . . Combat Hostiles . | . . . . . . . . . Parts Melted . | . . . . . . . . . Heat Transferred . | . . . . . . . . . Parts Sabotaged . | . . . . . . . . . Parts Stolen . | . . . . . . . . . Parts Stripped . | . . . . . . . . . Power Chain Reactions . | . . . . . . . . . Alert | -11 -10 -9 -8 -7 -7 -7 -7 -6 ------- Run | Yrd Mat Mat Mat Fac Low Low Zio Pro Maximum Alert Level . | . . . . . . . . . Low Security (%) 100 | 100 100 100 100 100 . . . . Level 1 . | . . . . . . . . . Level 2 . | . . . . . . . . . Level 3 . | . . . . . . . . . Level 4 . | . . . . . . . . . Level 5 . | . . . . . . . . . High Security . | . . . . . . . . . Max Security . | . . . . . . . . . Peak Influence 30 | . . 15 30 13 . . . . Initial 13 | . . . . 13 . . . . Average 2 | . . 2 2 3 . . . . Influence Increases 200 | . . 15 30 . 85 30 . 40 Destroy 0b10 Robot/C 120 | . . . . . 60 20 . 40 Destroy Leader 20 | . . . . . 10 10 . . Partial Spotted 15 | . . 15 . . . . . . Lose Combat Pursuer 45 | . . . 30 . 15 . . . Influence Decreases 170 | . . 15 . 30 80 35 . 10 Entered New Map 19 | . . . . 17 . 2 . . Time Decay 131 | . . 15 . 13 70 33 . . Lost Part 20 | . . . . . 10 . . 10 Squads Dispatched 4 | . . 1 2 1 . . . . Investigation 3 | . . 1 1 1 . . . . Extermination . | . . . . . . . . . Reinforcement 1 | . . . 1 . . . . . Assault . | . . . . . . . . . Garrison . | . . . . . . . . . Intercept . | . . . . . . . . . Searches Triggered . | . . . . . . . . . Construction Impeded . | . . . . . . . . . Haulers Reinforced . | . . . . . . . . . Active Scanning Responses . | . . . . . . . . . Cargo Convoy Interrupts . | . . . . . . . . . Stealth | -11 -10 -9 -8 -7 -7 -7 -7 -6 --------- Run | Yrd Mat Mat Mat Fac Low Low Zio Pro Distress Signals 1 | . . . 1 . . . . . Communications Jammed . | . . . . . . . . . Distress Signals . | . . . . . . . . . Times Spotted 33 | . 3 6 11 2 4 1 . 6 Peak Tracking Total 10 | . 3 6 10 2 4 1 . 6 Tactical Retreats 2 | . . . 1 . 1 . . . Traps | -11 -10 -9 -8 -7 -7 -7 -7 -6 ------- Run | Yrd Mat Mat Mat Fac Low Low Zio Pro Traps Triggered . | . . . . . . . . . Indirectly . | . . . . . . . . . Trap Hack Attempts . | . . . . . . . . . Triggered . | . . . . . . . . . Disarmed . | . . . . . . . . . Reprogrammed . | . . . . . . . . . Reused . | . . . . . . . . . Traps Extracted . | . . . . . . . . . Installed . | . . . . . . . . . Triggered . | . . . . . . . . . Machines | -11 -10 -9 -8 -7 -7 -7 -7 -6 ---------- Run | Yrd Mat Mat Mat Fac Low Low Zio Pro Machines Disabled . | . . . . . . . . . Max in Single Turn . | . . . . . . . . . Machines Repaired . | . . . . . . . . . Machines Dismantled . | . . . . . . . . . Machines Sabotaged . | . . . . . . . . . Overloaded Fab Kills . | . . . . . . . . . Hacking | -11 -10 -9 -8 -7 -7 -7 -7 -6 --------- Run | Yrd Mat Mat Mat Fac Low Low Zio Pro Machines Accessed 5 | . 1 1 . 1 1 . 1 . Terminals 4 | . 1 1 . 1 1 . . . Fabricators . | . . . . . . . . . Repair Stations . | . . . . . . . . . Recycling Units . | . . . . . . . . . Scanalyzers . | . . . . . . . . . Garrison Access . | . . . . . . . . . Total Hacks 12 | . 3 1 . 3 1 . 4 . Successful 5 | . . . . . 1 . 4 . Failed 7 | . 3 1 . 3 . . . . Catastrophic 2 | . . . . 2 . . . . Database Lockouts . | . . . . . . . . . Manual 18 | . 3 5 7 3 . . . . Terminals 8 | . 3 1 . 3 1 . . . Fabricators . | . . . . . . . . . Repair Stations . | . . . . . . . . . Recycling Units . | . . . . . . . . . Scanalyzers . | . . . . . . . . . Garrison Access . | . . . . . . . . . Terminal Hacks 5 | . . . . . 1 . 4 . Record 1 | . . . . . 1 . . . Part Schematic 4 | . . . . . . . 4 . Fabricator Hacks . | . . . . . . . . . Repair Station Hacks . | . . . . . . . . . Recycling Unit Hacks . | . . . . . . . . . Scanalyzer . | . . . . . . . . . Garrison Access Hacks . | . . . . . . . . . Unauthorized Hacks . | . . . . . . . . . Terminals . | . . . . . . . . . Fabricators . | . . . . . . . . . Repair Stations . | . . . . . . . . . Recycling Units . | . . . . . . . . . Scanalyzers . | . . . . . . . . . Garrison Access . | . . . . . . . . . Data Cores Recovered . | . . . . . . . . . Used . | . . . . . . . . . Hacking Detections 4 | . 1 1 1 1 . . . . Full Trace Events 4 | . 1 1 1 1 . . . . Feedback Events 1 | . . . . 1 . . . . Corruption 1 | . . . . 1 . . . . Feedback Blocked . | . . . . . . . . . Robot Schematics Acquired 3 | . . . . . . . 3 . Robots Built . | . . . . . . . . . Authchips . | . . . . . . . . . Time . | . . . . . . . . . Total Robot Build Rating . | . . . . . . . . . Part Schematics Acquired 19 | . . . . . . . 19 . Parts Built . | . . . . . . . . . Authchips . | . . . . . . . . . Time . | . . . . . . . . . Total Part Build Rating . | . . . . . . . . . Part Studies Acquired . | . . . . . . . . . Parts Repaired . | . . . . . . . . . Time . | . . . . . . . . . Parts Recycled . | . . . . . . . . . Recycled Matter . | . . . . . . . . . Retrieved Matter . | . . . . . . . . . Retrieved Components . | . . . . . . . . . Parts Scanalyzed . | . . . . . . . . . Part Schematics Acquired . | . . . . . . . . . Parts Damaged . | . . . . . . . . . Bothacking | -11 -10 -9 -8 -7 -7 -7 -7 -6 ------------ Run | Yrd Mat Mat Mat Fac Low Low Zio Pro Used RIF Installer . | . . . . . . . . . Robots Hacked . | . . . . . . . . . Non-combat . | . . . . . . . . . Combat . | . . . . . . . . . Robot Hacks Applied . | . . . . . . . . . Relay Couplers Released . | . . . . . . . . . Fabnet Peak Effective % . | . . . . . . . . . Robots Rewired . | . . . . . . . . . Allies Hacked . | . . . . . . . . . Hacks Repelled . | . . . . . . . . . Allies | -11 -10 -9 -8 -7 -7 -7 -7 -6 -------- Run | Yrd Mat Mat Mat Fac Low Low Zio Pro Total Allies 9 | . . . . . . . 9 . Largest Group 9 | . . . . . . . 9 . Highest-Rated Group 299 | . . . . . . . 299 . Highest-Rated Ally 42 | . . . . . . . 42 . Total Orders . | . . . . . . . . . Ally Attacks . | . . . . . . . . . Total Damage . | . . . . . . . . . Kills . | . . . . . . . . . Allies Corrupted . | . . . . . . . . . Allies Melted . | . . . . . . . . . Intel | -11 -10 -9 -8 -7 -7 -7 -7 -6 ------- Run | Yrd Mat Mat Mat Fac Low Low Zio Pro Active Infowar (turns) . | . . . . . . . . . Robot Analysis Total . | . . . . . . . . . Derelict Logs Recovered 3 | . . . . . . 1 2 . Drone Launches . | . . . . . . . . . Drone Recoveries . | . . . . . . . . . Exploration | -11 -10 -9 -8 -7 -7 -7 -7 -6 ------------- Run | Yrd Mat Mat Mat Fac Low Low Zio Pro Turns Passed 1650 | 12 44 50 39 95 241 407 704 58 Spaces Moved 2942 | 22 80 99 77 179 372 699 1323 91 Core 2941 | 22 80 99 77 179 372 699 1322 91 Treads . | . . . . . . . . . Legs . | . . . . . . . . . Wheels . | . . . . . . . . . Hover 1 | . . . . . . . 1 . Flight . | . . . . . . . . . Fastest Speed 50 | 50 50 50 50 50 50 50 50 50 Average Speed 50 | 50 50 50 50 50 50 50 50 50 Slowest Speed 80 | 50 50 50 50 50 50 50 80 50 Overloaded Moves . | . . . . . . . . . Propulsion Burnouts . | . . . . . . . . . Robots Hopped . | . . . . . . . . . Potential Cave-ins . | . . . . . . . . . Cave-ins Triggered . | . . . . . . . . . Exploration Rate (%) 35 | 3 21 17 17 7 60 86 91 21 Regions Visited 8 Branch Regions 4 Pre-discovered Areas . | . . . . . . . . . Known Exits Taken . | . . . . . . . . . Unknown Exits Taken 8 | 1 1 1 1 1 1 1 1 . Scrap Searched 13 | . . . . . 4 7 1 1 Spaces Dug 8 | . . . . . . 8 . . Terrain Destroyed 8 | . . . . . . 8 . . Melee 8 | . . . . . . 8 . . Projectile . | . . . . . . . . . AOE . | . . . . . . . . . Terrain Rammed . | . . . . . . . . . Walls Destroyed . | . . . . . . . . . Machines Disabled . | . . . . . . . . . Actions | -11 -10 -9 -8 -7 -7 -7 -7 -6 --------- Run | Yrd Mat Mat Mat Fac Low Low Zio Pro Total 3048 | 22 83 98 76 182 399 726 1366 96 Wait 55 | . . . . . 9 6 39 1 Move 2934 | 21 79 98 76 178 371 698 1322 91 Hop . | . . . . . . . . . Pick Up 8 | . . . . 1 2 3 2 . Fast Attach 3 | . . . . 2 1 . . . Attach 1 | . . . . . . 1 . . Detach . | . . . . . . . . . Swap 1 | . . . . . 1 . . . Drop 3 | . . . . . . . 3 . Fire . | . . . . . . . . . Melee 36 | . . . . . 15 17 . 4 Ram 6 | 1 4 . . 1 . . . . Kick . | . . . . . . . . . Crush . | . . . . . . . . . Escape Stasis . | . . . . . . . . . Rewire . | . . . . . . . . . Trap . | . . . . . . . . . Miscellaneous 1 | . . . . . . 1 . . Route ------- -11/Scrapyard -10/Materials -9/Materials -8/Materials -7/Factory -7/Lower Caves -7/Lower Caves (discovered 2 exits: [*Fac] / *Zio) -7/Zion (discovered 2 exits: Dee / [*Pro]) -6/Proximity Caves History --------- Turn | Location | Event 3 | -11/Scrapyard | Discovered new exit (range 16) 13 | -11/Scrapyard | Entered Materials 54 | -10/Materials | Discovered new exit (range 5) 55 | -10/Materials | Core integrity fell below 50% 57 | -10/Materials | Entered another Materials area 57 | -9/Materials | Evolved 2 slots: Power x2 99 | -9/Materials | Discovered new exit (range 16) 100 | -9/Materials | Core integrity fell below 50% 107 | -9/Materials | Entered another Materials area 107 | -8/Materials | Evolved 2 slots: Power x2 143 | -8/Materials | Discovered new exit (range 4) 146 | -8/Materials | Entered Factory 146 | -7/Factory | Evolved 2 slots: Power x2 234 | -7/Factory | Discovered new exit (range 8) 241 | -7/Factory | Entered Lower Caves 360 | -7/Lower Caves | Core integrity fell below 50% 388 | -7/Lower Caves | Encountered a Warlord checkpoint 424 | -7/Lower Caves | Murdered 3 allies 431 | -7/Lower Caves | Discovered new exit (range 16) 482 | -7/Lower Caves | Entered another Lower Caves area 494 | -7/Lower Caves | Discovered new exit (range 10) 535 | -7/Lower Caves | Encountered a Warlord checkpoint 545 | -7/Lower Caves | Learned Factory stockpile data 599 | -7/Lower Caves | Activated DRS Beacon 612 | -7/Lower Caves | Spotted B-75 Beast 660 | -7/Lower Caves | Destroyed B-75 Beast 679 | -7/Lower Caves | Build established: Mutant 803 | -7/Lower Caves | Discovered new exit (range 15) 889 | -7/Lower Caves | Entered Zion 908 | -7/Zion | Given the Hacking Drone Bay 926 | -7/Zion | Discovered new exit (range 14) 951 | -7/Zion | System corruption cleaned by Quarantine Array 1104 | -7/Zion | Found GAL Module 1186 | -7/Zion | Gained Derelict followers 1215 | -7/Zion | Gained Derelict followers 1229 | -7/Zion | Identified exit to Deep Caves 1254 | -7/Zion | Learned Factory terminal intel 1297 | -7/Zion | Learned Factory security intel 1436 | -7/Zion | Visited the Megawrench Repair Shop 1474 | -7/Zion | Met Imprinter 1482 | -7/Zion | Imprinted 1484 | -7/Zion | Declared Zion's savior 1593 | -7/Zion | Entered Proximity Caves 1617 | -6/Proximity Caves | Spotted B-75 Beast 1635 | -6/Proximity Caves | Core integrity fell below 20% 1651 | -6/Proximity Caves | Destroyed by S-27 Virus with Autogun Last Messages --------------- 01545_ AB-T6K(z) toys with the Twisted Machinery. 01560_ XD-PWF(z) scatters some of the Twisted Machinery. LOCATION=UNKNOWN GOAL=ESCAPE 01619_ Core Analyzer destroyed. 01621_ Searching scrap... 01621_ Found Mak. Spear. 01621_ Found 58 Matter. 01623_ Chain reaction triggered in Rnf. Deuterium Engine. 01626_ P-60 Hacker resets B-75 Beast, system corruption cleaned. 01635_ Mak. Hacking Suite destroyed. 01640_ S-27 Virus suffers critical hit (Smash). 01640_ Destroyed Lgt. Nuclear Core. 01640_ Destroyed VTOL Module. 01640_ S-27 Virus system corrupted by crushing effect. 01641_ S-27 Virus system terminally corrupted. 01642_ S-27 Virus knocked back. 01645_ S-27 Virus destroyed. 01646_ Hvy. Mace destroyed. Map ----- +----------------------------------------------------+ | ?????????????????????????????????????????????????? | | ?????????????????????????????????????????????????? | | ?????????????????????????????????????????????????? | | ?????????????????????????????????????????????????? | | ?????????????????????????????????????????????????? | | ?????????????????????????????????????????????????? | | ?????????????????????????????????????????????????? | | ?????????????????????????????????????????????????? | | ?????????????????????????????????????????????????? | | ?????????????????????????????????????????????????? | | ?????????????????????????????????????????????????? | | ?????????????????????????????????????????????????? | | ?????????????????????????????????????????????????? | | ##########???????????????????????????????????????? | | ##" #???????????????????????????????????????? | | #???????????????????????????????????????? | | #???????????????????????????????????????? | | ## %#???????????????????????????????????????? | | ?#" /#???????????????????????????????????????? | | #?# ####????????????????????????????????????? | | #?## "# ##???????????????????????????????????? | | #??## % #?????####??????????????????????????? | | #######" ;;;###### ##?????????????????????????? | | # #;;p s s ####??????????????????????? | | "## [%[ #??????????????????????? | | #### ### ###; @#??????????????????????? | | ##??# ### #?##### ???????????????? | | ##???# "## ##????## ???????????? | | #????# #?## #?????# ???????????? | | #????# #### #?????# ??????????? | | ????# ##?????# ## ???????????? | | ##???#### ##??????# ##??????????????? | | ##???????# ##??????? ## #???????????????? | | ##????????# #???????? ##?## #???????????????? | | ??????????# #???????#####????####???????????????? | | ??????????####???????????????????????????????????? | | ?????????????????????????????????????????????????? | | ?????????????????????????????????????????????????? | | ?????????????????????????????????????????????????? | | ?????????????????????????????????????????????????? | | ?????????????????????????????????????????????????? | | ?????????????????????????????????????????????????? | | ?????????????????????????????????????????????????? | | ?????????????????????????????????????????????????? | | ?????????????????????????????????????????????????? | | ?????????????????????????????????????????????????? | | ?????????????????????????????????????????????????? | | ?????????????????????????????????????????????????? | | ?????????????????????????????????????????????????? | | ?????????????????????????????????????????????????? | +----------------------------------------------------+ Best States ------------- Heat Dissipation 34 Energy Generation 5 Energy Capacity 100 Matter Stores 300 Matter Capacity 300 Sight Range 16 Terrain Scan Density 10 Evasion (%) 50 Core Analysis 6 Offensive Hacking 11 Defensive Hacking 10 Item Schematics ----------------- Riot Gun | -7/Zion | Free Battle Cannon | -7/Zion | Free Flamer | -7/Zion | Free Slug Cannon | -7/Zion | Free Microactuators | -7/Zion | Archive Thermic Laser | -7/Zion | Archive Lyr. Light Armor Plating | -7/Zion | Archive Point Defense System | -7/Zion | Archive Arm. Huge Wheel | -7/Zion | Archive Fission Core | -7/Zion | Archive Lrn. Proton Cannon | -7/Zion | Archive Imp. Cooling System | -7/Zion | Archive Imp. Reaction Control System | -7/Zion | Archive Force Booster | -7/Zion | Archive Adv. Signal Interpreter | -7/Zion | Archive Imp. Proton Missile Launcher | -7/Zion | Archive Spear | -7/Zion | Archive Gravmag System | -7/Zion | Archive Lrn. Missile Launcher | -7/Zion | Archive Robot Schematics ------------------ O-24 Administrator | -7/Zion | Archive T-07 Excavator | -7/Zion | Archive A-02 Transporter | -7/Zion | Archive Fabricated ------------ Nothing Repaired ---------- Nothing Studied --------- None Alien Tech Used ----------------- None Achievements -------------- Collateral Damage Challenges ------------ None Game ------ Seed TerrainIonicBox Manual? 0 Play Time 00:22:30 Cumulative 57.4 hours Start 2026.02.20 @ 23:19:11 End 2026.02.20 @ 23:41:34 Sessions 1 Manual Loads 0 Difficulty Rogue Special Mode None Game No. 174 Rogue 174 Adventurer 0 Explorer 0 Win Type - Total 0 Types 0/0/0/0/0/0/0/0/0/0 Lore% 61 Gallery% 35 Achievement% 33 Wizard Run 0 Options --------- Layout 0 ASCII 0 Keyboard 0 Movement Arrows Keybinds 0 Fullscreen 1 Font 24/Terminus Map View 64x52 Zoom Use 0% Tactical HUD 1 Map Filters NONE Filters NONE Steam 1 RUN: 5ef0bbd4-1bf4-4f4a-8ea8-07459325e823